{"text_format":"1","workbook":"xlsx","n_sheets":7,"sheets":["BB","Bandits","Outlaws","Young Lions","Semi Pro","Masters","Pro"],"not_rendered":{"charts":0,"images":0,"macros":0,"external_links":0,"defined_names":0,"comments":1,"pivot_tables":0},"unopened":[],"bounds":{"document_bytes":16777216,"sheet_cells":100000,"rows_first":2000,"rows_last":500,"rows_between":2000,"halvings":0,"cell_chars":16384,"cell_head_chars":4096},"cells_cut":0,"cells_raw":0,"read":"whole","date_system":"1900"}

{"sheet":"BB","index":0,"n_rows":24,"n_cols":12,"rows_kept":24,"cut":false,"hidden":false,"merged":[[2,0,2,13]]}
[]
[]
["B BANDOLERO - 2017 WINTER HEAT"]
[null,"CAR NUMBER","DRIVERS NAME","HOME TOWN",null,"12/03/16 FINISH","12/10/16 FINISH","12/17/16 FINISH","01/14/17 FINISH","01/21/17 FINISH","01/28/17 FINISH","01/29/17 FINISH"]
[1,1,"Anthony Russo","Rougemont, NC",null,"X","X","X"]
[2,"5","Zac Fowler","Concord, NC",null,"1"]
[3,"9","Santiago Hill","Mint Hill, NC",null,"X","X","X"]
[4,15,"Logan Clark","Mechanicsville, VA",null,"X","X","X"]
[5,56,"Ethan Norfleet","Somerset, KY",null,"X","1","1"]
[6,77,"Carson Ramsey","Charlotte, NC",null,"X","X","X"]
[7]
[8]
[9]
[10]
[11]
[12]
[13]
[14]
[15]
[]
[]
[]
[]
["*Ties will be broken by:  1)  number of wins, 2)  number of 2nd places, 3) number of third place finishes, etc., until the tie is broken)."]

{"sheet":"Bandits","index":1,"n_rows":23,"n_cols":22,"rows_kept":23,"cut":false,"hidden":false,"merged":[[0,0,0,24]]}
["BANDITS - 2017 WINTER HEAT POINTS"]
["CHAMPIONSHIP STANDING","CAR NUMBER","DRIVERS NAME","HOME TOWN",null,"TOTAL POINTS","12/03/16 FINISH","12/10/16 FINISH","12/17/16 FINISH","01/14/17 FINISH","01/21/17 FINISH","01/28/17 FINISH","01/29/17 FINISH",null,null,"12/03/16 FINISH","12/10/16 FINISH","12/17/16 FINISH","01/14/17 FINISH","01/21/17 FINISH","01/28/17 FINISH","01/29/17 FINISH"]
[1,"4E","Parker Eatmon","Wilson, NC",null,{"$f":"SUM(P3+Q3+R3+S3+T3+U3+V3+W3)","v":100},"1","5",null,null,null,null,null,null,null,"100","0"]
[2,"4","Leland Honeyman","Mooresville, NC",null,{"$f":"SUM(P4+Q4+R4+S4+T4+U4+V4+W4)","v":100},"2","1",null,null,null,null,null,null,null,"0","100"]
[3,"16","Stanley Hayes","Concord, NC",null,{"$f":"SUM(P5+Q5+R5+S5+T5+U5+V5+W5)","v":97},"7","2",null,null,null,null,null,null,null,"0","97"]
[4,"14","Conner Jones","Fredericksburg, VA",null,{"$f":"SUM(P6+Q6+R6+S6+T6+U6+V6+N6)","v":94},"3","9",null,null,null,null,null,null,null,"94","0"]
[5,"32","Zack Miracle","Indian Trail, NC",null,{"$f":"SUM(P7+Q7+R7+S7+T7+U7+V7+N7)","v":94},"4","3",null,null,null,null,null,null,null,"0","94"]
[6,"28","Landon Rapp","Concord, NC",null,{"$f":"SUM(P8+Q8+R8+S8+T8+U8+V8+W8)","v":91},null,"4",null,null,null,null,null,null,null,null,"91"]
[7,18,"Truett Miranda","Concord, NC",null,{"$f":"SUM(P9+Q9+R9+S9+T9+U9+V9+W9)","v":88},"5","10",null,null,null,null,null,null,null,"88","0"]
[8,"24","Mason Dejarnett","Monroe, NC",null,{"$f":"SUM(P10+Q10+R10+S10+T10+U10+V10+W10)","v":86},"6",null,null,null,null,null,null,null,null,"86"]
[9,"44J","Jason Chapman","Ellington, CT",null,{"$f":"SUM(P11+Q11+R11+S11+T11+U11+V11+N11)","v":86},null,"6",null,null,null,null,null,null,null,null,"86"]
[10,5,"Zac Fowler","Concord, NC",null,{"$f":"SUM(P12+Q12+R12+S12+T12+U12+V12+W12)","v":84},null,"7",null,null,null,null,null,null,null,null,"84"]
[11,"41","Tyler Chapman","Ellington, CT",null,{"$f":"SUM(P13+Q13+R13+S13+T13+U13+V13+W13)","v":82},null,"8",null,null,null,null,null,null,null,null,"82"]
[12,"31","Cole Bruce","Fredericksburg, VA",null,{"$f":"SUM(P14+Q14+R14+S14+T14+U14+V14+W14)","v":76},null,"11",null,null,null,null,null,null,null,null,"76"]
[13,null,null,null,null,{"$f":"SUM(P15+Q15+R15+S15+T15+U15+V15+N15)","v":0}]
[14,null,null,null,null,{"$f":"SUM(P16+Q16+R16+S16+T16+U16+V16+W16)","v":0}]
[15,null,null,null,null,0]
[16,null,null,null,null,0]
[17,null,null,null,null,0]
[18,null,null,null,null,0]
[19,null,null,null,null,0]
[20,null,null,null,null,0]
["*Ties will be broken by:  1)  number of wins, 2)  number of 2nd places, 3) number of third place finishes, etc., until the tie is broken)."]

{"sheet":"Outlaws","index":2,"n_rows":28,"n_cols":22,"rows_kept":28,"cut":false,"hidden":false,"merged":[[0,0,0,24]]}
["OUTLAWS - 2017 WINTER HEAT POINTS"]
["CHAMPIONSHIP STANDING","CAR NUMBER","DRIVERS NAME","HOME TOWN",null,"TOTAL POINTS","12/03/16 FINISH","12/10/16 FINISH","12/17/16 FINISH","01/14/17 FINISH","01/21/17 FINISH","01/28/17 FINISH","01/29/17 FINISH",null,null,"12/03/16 FINISH","12/10/16 FINISH","12/17/16 FINISH","01/14/17 FINISH","01/21/17 FINISH","01/28/17 FINISH","01/29/17 FINISH"]
[1,"19","Tommy Good","Huntersville, NC",null,{"$f":"SUM(P3+Q3+R3+S3+T3+U3+V3+W3)","v":100},"1","2",null,null,null,null,null,null,null,"100","0"]
[2,"67","Cameron Bolin","Sharon, SC",null,100,"2","1",null,null,null,null,null,null,null,"0","100"]
[3,"59","Teddy Cranmer","North Hanover, NJ",null,94,"3","8",null,null,null,null,null,null,null,"94","0"]
[4,13,"Luke Akers","Lexington, NC",null,94,null,"3",null,null,null,null,null,null,null,null,"94"]
[5,"8","Trevor Wester","Canton, NC",null,91,"4","6",null,null,null,null,null,null,null,"91","0"]
[6,"6L","Garrett Lowe","Gastonia, NC",null,91,"5","4",null,null,null,null,null,null,null,"0","91"]
[7,"54","Josh Speas","Concord, NC",null,88,null,"5",null,null,null,null,null,null,null,null,"88"]
[8,"00","Raven Lewis","Concord, NC",null,86,"6",null,null,null,null,null,null,null,null,"86"]
[9,3,"Autumn Weaver","Sutfolk, VA",null,84,"7",null,null,null,null,null,null,null,null,"84"]
[10,"12","Jonathan Lesik","Lancaster, SC",null,84,null,"7",null,null,null,null,null,null,null,null,"84"]
[11,7,"Ben Johnson","Huntersville, NC",null,82,"8",null,null,null,null,null,null,null,null,"82"]
[12,null,null,null,null,{"$f":"SUM(P14+Q14+R14+S14+T14+U14+V14+W14)","v":0}]
[13,null,null,null,null,{"$f":"SUM(P15+Q15+R15+S15+T15+U15+V15+W15)","v":0}]
[14,null,null,null,null,0]
[15,null,null,null,null,0]
[16,null,null,null,null,0]
[17,null,null,null,null,0]
[18,null,null,null,null,0]
[19,null,null,null,null,0]
[20,null,null,null,null,{"$f":"SUM(P22+Q22+R22+S22+T22+U22+V22+W22)","v":0}]
[21,null,null,null,null,0]
[22,null,null,null,null,0]
[23,null,null,null,null,0]
[24,null,null,null,null,0]
[25,null,null,null,null,0]
["*Ties will be broken by:  1)  number of wins, 2)  number of 2nd places, 3) number of third place finishes, etc., until the tie is broken)."]

{"sheet":"Young Lions","index":3,"n_rows":28,"n_cols":22,"rows_kept":28,"cut":false,"hidden":false,"merged":[[0,0,0,24]]}
["YOUNG LIONS - 2017 WINTER HEAT POINTS"]
["CHAMPIONSHIP STANDING","CAR NUMBER","DRIVERS NAME","HOME TOWN",null,"TOTAL POINTS","12/03/16 FINISH","12/10/16 FINISH","12/17/16 FINISH","01/14/17 FINISH","01/21/17 FINISH","01/28/17 FINISH","01/29/17 FINISH",null,null,"12/03/16 FINISH","12/10/16 FINISH","12/17/16 FINISH","01/14/17 FINISH","01/21/17 FINISH","01/28/17 FINISH","01/29/17 FINISH"]
[1,"9","Ashton Higgins","Weaverville, NC",null,{"$f":"SUM(P3+Q3+R3+S3+T3+U3+V3+W3)","v":100},"1","1",null,null,null,null,null,null,null,"0","100"]
[2,"11D","Johnny Dessler","Cucamonga, CA",null,97,"2","2",null,null,null,null,null,null,null,"0","97"]
[3,"44","Joshua Kossek","Tobaccoville, NC",null,94,"3","3",null,null,null,null,null,null,null,"0","94"]
[4,29,"DJ Canipe","Fallston, NC",null,91,"4",null,null,null,null,null,null,null,null,"91"]
[5,"22W","Sam Mayer","Franklin, WI",null,91,"12","4",null,null,null,null,null,null,null,"0","91"]
[6,90,"Daniel Wilk","Pineville, NC",null,88,"5","5",null,null,null,null,null,null,null,"0","88"]
[7,"18","Ryan Heim","Parkertown, NJ",null,86,"6",null,null,null,null,null,null,null,null,"86"]
[8,84,"Roy Hayes","Concord, NC",null,86,"9","6",null,null,null,null,null,null,null,"0","86"]
[9,24,"Bryson Ruff","Indian Trail, NC",null,84,"7","10",null,null,null,null,null,null,null,"84","0"]
[10,"20","Harrison Halder","Cumming, GA",null,84,null,"7",null,null,null,null,null,null,null,null,"84"]
[11,39,"Liz Montgomery","Charlotte, NC",null,82,"8","9",null,null,null,null,null,null,null,"82","0"]
[12,55,"Isabella Robusto","Fort Mill, SC",null,82,null,"8",null,null,null,null,null,null,null,null,"82"]
[13,"11","Gracie Trotter","Denver, NC",null,78,"10",null,null,null,null,null,null,null,null,"78"]
[14,"28","Timothy Watson",null,null,76,"11","13",null,null,null,null,null,null,null,"76","0"]
[15,14,"Steven Chapman","Ellington, CT",null,76,null,"11",null,null,null,null,null,null,null,null,"76"]
[16,"12","Sammy Smith","Johnston, Ia",null,74,null,"12",null,null,null,null,null,null,null,null,"74"]
[17,"22","William Robusto","Fort Mill, SC",null,70,null,"14",null,null,null,null,null,null,null,null,"70"]
[18,null,null,null,null,{"$f":"SUM(P20+Q20+R20+S20+T20+U20+V20+W20)","v":0}]
[19,null,null,null,null,0]
[20,null,null,null,null,{"$f":"SUM(P22+Q22+R22+S22+T22+U22+V22+W22)","v":0}]
[21,null,null,null,null,{"$f":"SUM(P23+Q23+R23+S23+T23+U23+V23+W23)","v":0}]
[22,null,null,null,null,0]
[23,null,null,null,null,0]
[24,null,null,null,null,0]
[25,null,null,null,null,0]
["*Ties will be broken by:  1)  number of wins, 2)  number of 2nd places, 3) number of third place finishes, etc., until the tie is broken)."]

{"sheet":"Semi Pro","index":4,"n_rows":19,"n_cols":22,"rows_kept":19,"cut":false,"hidden":false,"merged":[[0,0,0,24]]}
["SEMI PRO - 2017 WINTER HEAT POINTS"]
["CHAMPIONSHIP STANDING","CAR NUMBER","DRIVERS NAME","HOME TOWN",null,"TOTAL POINTS","12/03/16 FINISH","12/10/16 FINISH","12/17/16 FINISH","01/14/17 FINISH","01/21/17 FINISH","01/28/17 FINISH","01/29/17 FINISH",null,null,"12/03/16 FINISH","12/10/16 FINISH","12/17/16 FINISH","01/14/17 FINISH","01/21/17 FINISH","01/28/17 FINISH","01/29/17 FINISH"]
[1,95,"Jacob Heafner","Dallas, NC",null,{"$f":"SUM(P3+Q3+R3+S3+T3+U3+V3+W3)","v":100},"1",null,null,null,null,null,null,null,null,"100"]
[2,"87","Zack Miller","South Charleston, OH",null,100,null,"1",null,null,null,null,null,null,null,null,"100"]
[3,"14M","Vincent Midas","Catawba, NC",null,97,"2","7",null,null,null,null,null,null,null,"97","0"]
[4,98,"Jake Tretow","Concord, NC",null,97,null,"2",null,null,null,null,null,null,null,null,"97"]
[5,"23","Bronson Butcher","Huntersville, NC",null,94,"3",null,null,null,null,null,null,null,null,"94"]
[6,"7","Ryan Miller","South Charleston, OH",null,94,null,"3",null,null,null,null,null,null,null,null,"94"]
[7,"14O","Ryo Ogata","Troutman, NC",null,91,"4",null,null,null,null,null,null,null,null,"91"]
[8,"9","Donald Buell","Corry, PA",null,91,null,"4",null,null,null,null,null,null,null,null,"91"]
[9,"10","Jack Fread","Cornelius, NC",null,88,"5","8",null,null,null,null,null,null,null,"88","0"]
[10,"40","Garrett Biggers","Charlotte, NC",null,88,"8","5",null,null,null,null,null,null,null,"0","88"]
[11,"00S","Andrew Dollar","Atlanta, GA",null,86,"6",null,null,null,null,null,null,null,null,"86"]
[12,"9W","Hudson Halder","Cumming, GA",null,86,null,"6",null,null,null,null,null,null,null,null,"86"]
[13,"7","Dustin McClure",null,null,84,"7",null,null,null,null,null,null,null,null,"84"]
[14,25,"Christopher Clanton","Brooks, GA",null,80,"9",null,null,null,null,null,null,null,null,"80"]
[15,null,null,null,null,{"$f":"SUM(P17+Q17+R17+S17+T17+U17+V17+W17)","v":0}]
[]
["*Ties will be broken by:  1)  number of wins, 2)  number of 2nd places, 3) number of third place finishes, etc., until the tie is broken)."]

{"sheet":"Masters","index":5,"n_rows":19,"n_cols":22,"rows_kept":19,"cut":false,"hidden":false,"merged":[[0,0,0,24]]}
["MASTERS - 2017 WINTER HEAT POINTS"]
["CHAMPIONSHIP STANDING","CAR NUMBER","DRIVERS NAME","HOME TOWN",null,"TOTAL POINTS","12/03/16 FINISH","12/10/16 FINISH","12/17/16 FINISH","01/14/17 FINISH","01/21/17 FINISH","01/28/17 FINISH","01/29/17 FINISH",null,null,"12/03/16 FINISH","12/10/16 FINISH","12/17/16 FINISH","01/14/17 FINISH","01/21/17 FINISH","01/28/17 FINISH","01/29/17 FINISH"]
[1,"50","Todd Midas","Catawba, NC",null,{"$f":"SUM(P3+Q3+R3+S3+T3+U3+V3+W3)","v":100},"1","1",null,null,null,null,null,null,null,"0","100"]
[2,"22","Dwayne Holder","Midland, NC",null,97,"2","4",null,null,null,null,null,null,null,"97","0"]
[3,21,"Karl Moberg","Titusville, FL",null,97,null,"2",null,null,null,null,null,null,null,null,"97"]
[4,"14","Jeffery Lefcourt","River Vale, NJ",null,94,"3",null,null,null,null,null,null,null,null,"94"]
[5,"33","Scott Wessel","Joanna, SC",null,94,null,"3",null,null,null,null,null,null,null,null,"94"]
[6,"55","Dean Bonessi","Hendersonville, NC",null,91,"4",null,null,null,null,null,null,null,null,"91"]
[7,"53","Bruce Silver","Davidson, NC",null,88,"5",null,null,null,null,null,null,null,null,"88"]
[8,"21B","Joel Carlyle","Marshallberg, NC",null,88,null,"5",null,null,null,null,null,null,null,null,"88"]
[9,null,null,null,null,{"$f":"SUM(P11+Q11+R11+S11+T11+U11+V11+W11)","v":0}]
[10,null,null,null,null,0]
[11,null,null,null,null,0]
[12,null,null,null,null,0]
[13,null,null,null,null,0]
[14,null,null,null,null,0]
[15,null,null,null,null,{"$f":"SUM(P17+Q17+R17+S17+T17+U17+V17+W17)","v":0}]
[]
["*Ties will be broken by:  1)  number of wins, 2)  number of 2nd places, 3) number of third place finishes, etc., until the tie is broken)."]

{"sheet":"Pro","index":6,"n_rows":19,"n_cols":22,"rows_kept":19,"cut":false,"hidden":false,"merged":[[0,0,0,24]]}
["PRO - 2017 WINTER HEAT POINTS"]
["CHAMPIONSHIP STANDING","CAR NUMBER","DRIVERS NAME","HOME TOWN",null,"TOTAL POINTS","12/03/16 FINISH","12/10/16 FINISH","12/17/16 FINISH","01/14/17 FINISH","01/21/17 FINISH","01/28/17 FINISH","01/29/17 FINISH",null,null,"12/03/16 FINISH","12/10/16 FINISH","12/17/16 FINISH","01/14/17 FINISH","01/21/17 FINISH","01/28/17 FINISH","01/29/17 FINISH"]
[1,"48","Austin Green","Concord, NC",null,{"$f":"SUM(P3+Q3+R3+S3+T3+U3+V3+W3)","v":100},"1","5",null,null,null,null,null,null,null,"100","0"]
[2,34,"Nolan Pope","Harrisonville, MO",null,100,"4","1",null,null,null,null,null,null,null,"0","100"]
[3,"00","Carson Ferguson","Charlotte, NC",null,97,"2","2",null,null,null,null,null,null,null,"0","97"]
[4,"77","Giovanni Bromante","Locust Valley, NY",null,94,"3","7",null,null,null,null,null,null,null,"94","0"]
[5,"24","Matt Mead","Erie, PA",null,94,"6","3",null,null,null,null,null,null,null,"0","94"]
[6,"3","Michael Womack","Fallbrook, CA",null,91,null,"4",null,null,null,null,null,null,null,null,"91"]
[7,"43","Brody Pope","Harrisonville, MO",null,88,"5","6",null,null,null,null,null,null,null,"88","0"]
[8,"84","Kyle Beattie","Locust, NC",null,84,"7",null,null,null,null,null,null,null,null,"84"]
[9,null,null,null,null,{"$f":"SUM(P11+Q11+R11+S11+T11+U11+V11+W11)","v":0}]
[10,null,null,null,null,0]
[11,null,null,null,null,0]
[12,null,null,null,null,0]
[13,null,null,null,null,0]
[14,null,null,null,null,0]
[15,null,null,null,null,0]
[]
["*Ties will be broken by:  1)  number of wins, 2)  number of 2nd places, 3) number of third place finishes, etc., until the tie is broken)."]